[Event "*** SCC Grand Prix: Titled Tuesday Blitz"]
[Site "Chess.com"]
[Date "2020.06.02"]
[Round "2"]
[White "theblitzchamp"]
[Black "chessablanca"]
[Result "0-1"]
[WhiteElo "2647"]
[BlackElo "2440"]
[TimeControl "180+1"]
[EndTime "10:17:28 PDT"]
[Termination "chessablanca won by checkmate"]

1. d4 {[%clk 0:03:00.9]} 1... Nf6 {[%clk 0:02:59.1]} 2. Bf4 {[%clk 0:03:00.2]}
2... d5 {[%clk 0:02:57.1]} 3. e3 {[%clk 0:03:00.3]} 3... e6 {[%clk 0:02:56.5]}
4. Nf3 {[%clk 0:03:00]} 4... Bd6 {[%clk 0:02:56.5]} 5. Nbd2 {[%clk 0:03:00.1]}
5... Qe7 {[%clk 0:02:52.6]} 6. c3 {[%clk 0:02:58.3]} 6... Nbd7 {[%clk
0:02:50.5]} 7. Ne5 {[%clk 0:02:44.5]} 7... b6 {[%clk 0:02:23.2]} 8. Bb5 {[%clk
0:02:16.2]} 8... Bb7 {[%clk 0:02:15.5]} 9. Bg5 {[%clk 0:02:11.5]} 9... Bc8
{[%clk 0:01:24.6]} 10. Qa4 {[%clk 0:01:48.7]} 10... a6 {[%clk 0:01:10.2]} 11.
Ndf3 {[%clk 0:01:15.2]} 11... h6 {[%clk 0:00:45.4]} 12. Bh4 {[%clk 0:00:53.8]}
12... O-O {[%clk 0:00:25.8]} 13. Bc6 {[%clk 0:00:23]} 13... Rb8 {[%clk
0:00:22.6]} 14. Qc2 {[%clk 0:00:22.4]} 14... g5 {[%clk 0:00:16.4]} 15. Bxd7
{[%clk 0:00:17.9]} 15... Nxd7 {[%clk 0:00:12.8]} 16. Nc6 {[%clk 0:00:17.1]}
16... Qf6 {[%clk 0:00:12.9]} 17. Bg3 {[%clk 0:00:16]} 17... Ra8 {[%clk
0:00:10.9]} 18. Nce5 {[%clk 0:00:11.2]} 18... Qe7 {[%clk 0:00:09.4]} 19. e4
{[%clk 0:00:09.3]} 19... Bb7 {[%clk 0:00:08.7]} 20. exd5 {[%clk 0:00:08.4]}
20... exd5 {[%clk 0:00:09.1]} 21. O-O-O {[%clk 0:00:08.2]} 21... Bxe5 {[%clk
0:00:08.3]} 22. Nxe5 {[%clk 0:00:08.2]} 22... Nxe5 {[%clk 0:00:08.6]} 23. Bxe5
{[%clk 0:00:08.6]} 23... f6 {[%clk 0:00:09.1]} 24. Bg3 {[%clk 0:00:08]} 24...
Qg7 {[%clk 0:00:09.2]} 25. h4 {[%clk 0:00:08.2]} 25... g4 {[%clk 0:00:08.9]} 26.
h5 {[%clk 0:00:08.1]} 26... Rae8 {[%clk 0:00:08.9]} 27. Rde1 {[%clk 0:00:07.5]}
27... Qg5+ {[%clk 0:00:08.5]} 28. Kb1 {[%clk 0:00:07.6]} 28... Rxe1+ {[%clk
0:00:08.4]} 29. Rxe1 {[%clk 0:00:07.2]} 29... Bc8 {[%clk 0:00:09.3]} 30. Ka1
{[%clk 0:00:06.9]} 30... Bf5 {[%clk 0:00:09.6]} 31. Qb3 {[%clk 0:00:07.1]} 31...
Be4 {[%clk 0:00:10]} 32. Rxe4 {[%clk 0:00:06.3]} 32... Qc1# {[%clk 0:00:09.8]}
0-1

[Event "*** SCC Grand Prix: Titled Tuesday Blitz"]
[Site "Chess.com"]
[Date "2020.06.02"]
[Round "2"]
[White "Panterov"]
[Black "CyberneticLion"]
[Result "0-1"]
[WhiteElo "2117"]
[BlackElo "2392"]
[TimeControl "180+1"]
[EndTime "10:17:28 PDT"]
[Termination "CyberneticLion won on time"]

1. e4 {[%clk 0:02:21.7]} 1... e5 {[%clk 0:02:38.4]} 2. Nf3 {[%clk 0:02:19.1]}
2... Nc6 {[%clk 0:02:38.1]} 3. d4 {[%clk 0:02:16.2]} 3... exd4 {[%clk
0:02:38.1]} 4. Nxd4 {[%clk 0:02:16.1]} 4... Bc5 {[%clk 0:02:35.7]} 5. Nf5 {[%clk
0:02:16.2]} 5... Qf6 {[%clk 0:02:26.9]} 6. Nc3 {[%clk 0:02:15]} 6... Nge7 {[%clk
0:02:24.7]} 7. Ne3 {[%clk 0:02:15.3]} 7... O-O {[%clk 0:02:14.6]} 8. Bd3 {[%clk
0:02:15.6]} 8... Ne5 {[%clk 0:02:01.4]} 9. O-O {[%clk 0:02:15.4]} 9... Nxd3
{[%clk 0:01:57]} 10. cxd3 {[%clk 0:02:16.3]} 10... d6 {[%clk 0:01:52.9]} 11. Kh1
{[%clk 0:02:14.7]} 11... c6 {[%clk 0:01:46.1]} 12. f4 {[%clk 0:02:14.7]} 12...
Rd8 {[%clk 0:01:17.8]} 13. Qf3 {[%clk 0:02:04.9]} 13... Qd4 {[%clk 0:01:10.2]}
14. Nc2 {[%clk 0:01:36.7]} 14... Qf6 {[%clk 0:01:05.3]} 15. e5 {[%clk
0:01:14.8]} 15... dxe5 {[%clk 0:01:02.7]} 16. Ne4 {[%clk 0:01:14.2]} 16... Qg6
{[%clk 0:00:55.4]} 17. Nxc5 {[%clk 0:01:13.2]} 17... Bg4 {[%clk 0:00:53.6]} 18.
Qg3 {[%clk 0:01:08.1]} 18... b6 {[%clk 0:00:48.4]} 19. h3 {[%clk 0:00:49.4]}
19... Be2 {[%clk 0:00:45.8]} 20. Qxg6 {[%clk 0:00:42.5]} 20... hxg6 {[%clk
0:00:46.7]} 21. Re1 {[%clk 0:00:42.1]} 21... Nf5 {[%clk 0:00:45]} 22. Ne4 {[%clk
0:00:27.1]} 22... Bxd3 {[%clk 0:00:43.6]} 23. Ne3 {[%clk 0:00:19.6]} 23... Bxe4
{[%clk 0:00:42.1]} 24. Nxf5 {[%clk 0:00:19.8]} 24... gxf5 {[%clk 0:00:42.4]} 25.
fxe5 {[%clk 0:00:18.5]} 25... Rd5 {[%clk 0:00:41.7]} 26. Bf4 {[%clk 0:00:18.2]}
26... Rad8 {[%clk 0:00:42.2]} 27. Rac1 {[%clk 0:00:16.7]} 27... c5 {[%clk
0:00:41.5]} 28. Kg1 {[%clk 0:00:16.2]} 28... Kf8 {[%clk 0:00:42]} 29. h4 {[%clk
0:00:14.6]} 29... R8d7 {[%clk 0:00:40]} 30. Kf2 {[%clk 0:00:14.3]} 30... Ke7
{[%clk 0:00:40.3]} 31. g3 {[%clk 0:00:13.2]} 31... Ke6 {[%clk 0:00:37.3]} 32.
Rc3 {[%clk 0:00:03.2]} 32... b5 {[%clk 0:00:36.1]} 33. Rce3 {[%clk 0:00:02.6]}
33... c4 {[%clk 0:00:34]} 34. Rxe4 {[%clk 0:00:01.7]} 34... fxe4 {[%clk
0:00:34.9]} 35. Rxe4 {[%clk 0:00:01.6]} 35... a5 {[%clk 0:00:33.8]} 36. Re2
{[%clk 0:00:01.2]} 36... b4 {[%clk 0:00:33.2]} 37. g4 {[%clk 0:00:01.6]} 37...
c3 {[%clk 0:00:31.7]} 0-1

[Event "*** SCC Grand Prix: Titled Tuesday Blitz"]
[Site "Chess.com"]
[Date "2020.06.02"]
[Round "2"]
[White "HrvojeZagreb"]
[Black "froylanajedrez"]
[Result "0-1"]
[WhiteElo "2105"]
[BlackElo "2387"]
[TimeControl "180+1"]
[EndTime "10:17:29 PDT"]
[Termination "froylanajedrez won by resignation"]

1. d4 {[%clk 0:02:43.3]} 1... Nf6 {[%clk 0:02:59.1]} 2. Bf4 {[%clk 0:02:42.7]}
2... g6 {[%clk 0:02:58.8]} 3. Nc3 {[%clk 0:02:42.4]} 3... d5 {[%clk 0:02:57.8]}
4. e3 {[%clk 0:02:42.3]} 4... Bg7 {[%clk 0:02:55.4]} 5. h4 {[%clk 0:02:42.2]}
5... h6 {[%clk 0:02:54.6]} 6. Nf3 {[%clk 0:02:27.9]} 6... O-O {[%clk 0:02:51.6]}
7. Ne5 {[%clk 0:02:26.2]} 7... Nbd7 {[%clk 0:02:49.2]} 8. f3 {[%clk 0:02:10.6]}
8... Nh5 {[%clk 0:02:45.4]} 9. Bh2 {[%clk 0:02:08.6]} 9... e6 {[%clk 0:02:42]}
10. g4 {[%clk 0:02:07.2]} 10... Qxh4+ {[%clk 0:02:39.9]} 11. Kd2 {[%clk
0:02:07.1]} 11... Nxe5 {[%clk 0:02:24.6]} 12. dxe5 {[%clk 0:02:00.9]} 12... Ng3
{[%clk 0:02:19.6]} 13. Qe1 {[%clk 0:01:58.7]} 13... Bxe5 {[%clk 0:02:02.8]} 14.
Ne2 {[%clk 0:01:51.1]} 14... Nxf1+ {[%clk 0:01:56.4]} 15. Qxf1 {[%clk 0:01:52]}
15... Bxh2 {[%clk 0:01:55.4]} 16. Qg2 {[%clk 0:01:49.4]} 16... d4 {[%clk
0:01:42]} 17. Rxh2 {[%clk 0:01:29.1]} 17... dxe3+ {[%clk 0:01:40.8]} 18. Kxe3
{[%clk 0:01:18.8]} 18... Qg5+ {[%clk 0:01:38.6]} 19. Kf2 {[%clk 0:01:17]} 19...
Qc5+ {[%clk 0:01:34.8]} 20. Kg3 {[%clk 0:01:15.1]} 20... Qe5+ {[%clk 0:01:28.2]}
21. Kf2 {[%clk 0:01:14.6]} 21... Kg7 {[%clk 0:01:12.2]} 22. Rah1 {[%clk
0:01:07.3]} 22... Rh8 {[%clk 0:01:10.6]} 23. f4 {[%clk 0:01:05.6]} 23... Qc5+
{[%clk 0:01:07.2]} 24. Kg3 {[%clk 0:00:56.8]} 24... Bd7 {[%clk 0:01:06.9]} 25.
Qf2 {[%clk 0:00:35.7]} 25... Qxf2+ {[%clk 0:00:41.1]} 26. Kxf2 {[%clk
0:00:36.6]} 26... Bc6 {[%clk 0:00:40.6]} 27. Rd1 {[%clk 0:00:32.4]} 27... Rad8
{[%clk 0:00:41]} 28. Rd4 {[%clk 0:00:32.5]} 28... Bb5 {[%clk 0:00:34.8]} 29. Rb4
{[%clk 0:00:28.3]} 29... Bxe2 {[%clk 0:00:30.8]} 30. Kxe2 {[%clk 0:00:27.8]}
30... b6 {[%clk 0:00:29.4]} 31. a4 {[%clk 0:00:26.4]} 31... Rd5 {[%clk
0:00:25.6]} 32. Rb5 {[%clk 0:00:17.3]} 32... Rd4 {[%clk 0:00:23.6]} 33. f5
{[%clk 0:00:13]} 33... exf5 {[%clk 0:00:21.7]} 34. gxf5 {[%clk 0:00:12.9]} 34...
Re8+ {[%clk 0:00:22.1]} 35. Kf3 {[%clk 0:00:09.4]} 35... g5 {[%clk 0:00:21.2]}
36. Re2 {[%clk 0:00:07.2]} 36... Rf4+ {[%clk 0:00:20.7]} 0-1

[Event "*** SCC Grand Prix: Titled Tuesday Blitz"]
[Site "Chess.com"]
[Date "2020.06.02"]
[Round "2"]
[White "WelshTiger"]
[Black "dianamirza"]
[Result "1-0"]
[WhiteElo "2365"]
[BlackElo "2030"]
[TimeControl "180+1"]
[EndTime "10:17:29 PDT"]
[Termination "WelshTiger won by resignation"]

1. e4 {[%clk 0:02:57.9]} 1... e5 {[%clk 0:02:50.1]} 2. Nf3 {[%clk 0:02:57.7]}
2... d6 {[%clk 0:02:49]} 3. d4 {[%clk 0:02:55.5]} 3... exd4 {[%clk 0:02:49.9]}
4. Nxd4 {[%clk 0:02:55.5]} 4... Nf6 {[%clk 0:02:47.4]} 5. Nc3 {[%clk 0:02:55.7]}
5... g6 {[%clk 0:02:46.3]} 6. h3 {[%clk 0:02:48.9]} 6... Bg7 {[%clk 0:02:46]} 7.
g3 {[%clk 0:02:36.2]} 7... O-O {[%clk 0:02:43.3]} 8. Bg2 {[%clk 0:02:36.3]} 8...
Nbd7 {[%clk 0:02:28.8]} 9. O-O {[%clk 0:02:35.2]} 9... a5 {[%clk 0:02:27]} 10.
a4 {[%clk 0:02:27.7]} 10... Nc5 {[%clk 0:02:26]} 11. Re1 {[%clk 0:02:26.3]}
11... Re8 {[%clk 0:02:22.5]} 12. b3 {[%clk 0:02:18.1]} 12... Ne6 {[%clk
0:02:14.1]} 13. Ndb5 {[%clk 0:02:13.7]} 13... Bd7 {[%clk 0:01:57]} 14. Bb2
{[%clk 0:02:13.4]} 14... Bc6 {[%clk 0:01:47]} 15. Nd4 {[%clk 0:02:01]} 15...
Nxd4 {[%clk 0:01:46]} 16. Qxd4 {[%clk 0:01:57.7]} 16... Nxe4 {[%clk 0:01:42]}
17. Qd3 {[%clk 0:01:57.1]} 17... Nc5 {[%clk 0:01:36.8]} 18. Qd2 {[%clk
0:01:51.2]} 18... Bxg2 {[%clk 0:01:34]} 19. Kxg2 {[%clk 0:01:51.4]} 19... Qd7
{[%clk 0:01:19.4]} 20. Rad1 {[%clk 0:01:39.3]} 20... Rxe1 {[%clk 0:01:13.5]} 21.
Rxe1 {[%clk 0:01:39.1]} 21... Re8 {[%clk 0:01:10.2]} 22. Bc1 {[%clk 0:01:30.2]}
22... Rxe1 {[%clk 0:01:03.4]} 23. Qxe1 {[%clk 0:01:30.1]} 23... Qc6+ {[%clk
0:01:03.9]} 24. Kh2 {[%clk 0:01:29.9]} 24... Nxb3 {[%clk 0:00:53.4]} 25. cxb3
{[%clk 0:00:56.4]} 25... Bxc3 {[%clk 0:00:44.3]} 26. Qe7 {[%clk 0:00:51.8]}
26... Kg7 {[%clk 0:00:22.7]} 27. Qg5 {[%clk 0:00:33.9]} 27... Bf6 {[%clk
0:00:10.3]} 28. Qh6+ {[%clk 0:00:34.3]} 28... Kg8 {[%clk 0:00:10.3]} 29. Be3
{[%clk 0:00:34.9]} 29... Bg7 {[%clk 0:00:07.6]} 30. Qg5 {[%clk 0:00:34]} 30...
Qd7 {[%clk 0:00:06.8]} 31. Qxa5 {[%clk 0:00:33.1]} 31... Qe6 {[%clk 0:00:05.2]}
32. Qa8+ {[%clk 0:00:32.2]} 32... Bf8 {[%clk 0:00:04.5]} 33. Qxb7 {[%clk
0:00:32.6]} 33... c5 {[%clk 0:00:02.8]} 34. a5 {[%clk 0:00:28.3]} 34... d5
{[%clk 0:00:02.9]} 35. a6 {[%clk 0:00:28.6]} 35... Qe7 {[%clk 0:00:02]} 36. Qxe7
{[%clk 0:00:27]} 36... Bxe7 {[%clk 0:00:02.9]} 37. a7 {[%clk 0:00:27.5]} 1-0

[Event "*** SCC Grand Prix: Titled Tuesday Blitz"]
[Site "Chess.com"]
[Date "2020.06.02"]
[Round "2"]
[White "rpragchess"]
[Black "ShapkinAnatoliy"]
[Result "0-1"]
[WhiteElo "2862"]
[BlackElo "2571"]
[TimeControl "180+1"]
[EndTime "10:17:33 PDT"]
[Termination "ShapkinAnatoliy won on time"]

1. Nf3 {[%clk 0:03:00.9]} 1... Nf6 {[%clk 0:02:46.3]} 2. g3 {[%clk 0:02:55.4]}
2... g6 {[%clk 0:02:46.1]} 3. b3 {[%clk 0:02:54.4]} 3... Bg7 {[%clk 0:02:43.9]}
4. Bb2 {[%clk 0:02:55]} 4... O-O {[%clk 0:02:43.9]} 5. Bg2 {[%clk 0:02:54.5]}
5... c5 {[%clk 0:02:44]} 6. c4 {[%clk 0:02:53.4]} 6... Nc6 {[%clk 0:02:43.5]} 7.
O-O {[%clk 0:02:52.8]} 7... d6 {[%clk 0:02:41.8]} 8. d4 {[%clk 0:02:52.5]} 8...
cxd4 {[%clk 0:02:41.2]} 9. Nxd4 {[%clk 0:02:53.4]} 9... Bd7 {[%clk 0:02:41.4]}
10. Nc3 {[%clk 0:02:53.6]} 10... Qa5 {[%clk 0:02:37]} 11. e3 {[%clk 0:02:48.2]}
11... a6 {[%clk 0:02:17.8]} 12. Qe2 {[%clk 0:02:23.6]} 12... Rac8 {[%clk
0:02:08.4]} 13. Rad1 {[%clk 0:02:11.5]} 13... Nxd4 {[%clk 0:02:01.2]} 14. exd4
{[%clk 0:02:08.4]} 14... b5 {[%clk 0:01:46.6]} 15. Qxe7 {[%clk 0:01:06.7]} 15...
bxc4 {[%clk 0:01:45.7]} 16. bxc4 {[%clk 0:00:58.6]} 16... Qb6 {[%clk 0:01:35.4]}
17. Qe2 {[%clk 0:00:54.9]} 17... Rfe8 {[%clk 0:01:31.1]} 18. Qd2 {[%clk
0:00:53.4]} 18... Rxc4 {[%clk 0:01:29.7]} 19. Nd5 {[%clk 0:00:53.2]} 19... Qb5
{[%clk 0:01:15.5]} 20. Ne3 {[%clk 0:00:48.2]} 20... Rcc8 {[%clk 0:01:06.6]} 21.
Rb1 {[%clk 0:00:48]} 21... Qa4 {[%clk 0:01:04.3]} 22. d5 {[%clk 0:00:45.2]}
22... Bb5 {[%clk 0:01:00.3]} 23. Rfc1 {[%clk 0:00:42.5]} 23... Qxa2 {[%clk
0:00:59.5]} 24. Qb4 {[%clk 0:00:23.8]} 24... Rxc1+ {[%clk 0:00:40.7]} 25. Bxc1
{[%clk 0:00:18.3]} 25... Nd7 {[%clk 0:00:34.9]} 26. Bf1 {[%clk 0:00:09.9]} 26...
Bxf1 {[%clk 0:00:30.2]} 27. Kxf1 {[%clk 0:00:10.8]} 27... Nc5 {[%clk 0:00:30.7]}
28. Bd2 {[%clk 0:00:01.9]} 28... Nd3 {[%clk 0:00:26.7]} 29. Qb8 {[%clk
0:00:01.1]} 29... Rf8 {[%clk 0:00:16.2]} 0-1

[Event "*** SCC Grand Prix: Titled Tuesday Blitz"]
[Site "Chess.com"]
[Date "2020.06.02"]
[Round "2"]
[White "Alopekos"]
[Black "Gajuchess"]
[Result "0-1"]
[WhiteElo "2514"]
[BlackElo "2770"]
[TimeControl "180+1"]
[EndTime "10:17:34 PDT"]
[Termination "Gajuchess won on time"]

1. e4 {[%clk 0:03:00.7]} 1... c6 {[%clk 0:02:59.3]} 2. d4 {[%clk 0:03:00.5]}
2... d5 {[%clk 0:02:59.9]} 3. Nd2 {[%clk 0:03:01.3]} 3... dxe4 {[%clk
0:02:59.8]} 4. Nxe4 {[%clk 0:03:02]} 4... Bf5 {[%clk 0:03:00.5]} 5. Ng3 {[%clk
0:03:02.6]} 5... Bg6 {[%clk 0:03:01.1]} 6. h4 {[%clk 0:03:03.3]} 6... h6 {[%clk
0:03:01.1]} 7. Nf3 {[%clk 0:03:03.8]} 7... Nd7 {[%clk 0:03:00.6]} 8. h5 {[%clk
0:03:04.5]} 8... Bh7 {[%clk 0:03:01]} 9. Bd3 {[%clk 0:03:05.3]} 9... Bxd3 {[%clk
0:03:00.5]} 10. Qxd3 {[%clk 0:03:05.2]} 10... e6 {[%clk 0:03:00.5]} 11. Bd2
{[%clk 0:03:03.9]} 11... Ngf6 {[%clk 0:03:00.1]} 12. O-O-O {[%clk 0:03:04.5]}
12... Qb6 {[%clk 0:02:59.9]} 13. c4 {[%clk 0:03:01.4]} 13... Be7 {[%clk
0:02:57]} 14. Bc3 {[%clk 0:02:58.3]} 14... O-O {[%clk 0:02:51.3]} 15. Ne4 {[%clk
0:02:58]} 15... Nxe4 {[%clk 0:02:51.5]} 16. Qxe4 {[%clk 0:02:58.8]} 16... Qa6
{[%clk 0:02:52.4]} 17. Qe2 {[%clk 0:01:55.6]} 17... Qxa2 {[%clk 0:02:48.8]} 18.
Kc2 {[%clk 0:01:55.6]} 18... Qa4+ {[%clk 0:02:32.7]} 19. b3 {[%clk 0:01:31.8]}
19... Qa2+ {[%clk 0:02:32.4]} 20. Bb2 {[%clk 0:01:23.4]} 20... Ba3 {[%clk
0:02:32]} 21. Rb1 {[%clk 0:01:23.5]} 21... b5 {[%clk 0:02:18.2]} 22. Rh3 {[%clk
0:01:10.4]} 22... Rab8 {[%clk 0:01:57.8]} 23. Nd2 {[%clk 0:01:03.6]} 23... bxc4
{[%clk 0:01:54.6]} 24. Nxc4 {[%clk 0:00:41.3]} 24... Bxb2 {[%clk 0:01:54.5]} 25.
Rxb2 {[%clk 0:00:41.9]} 25... Qa6 {[%clk 0:01:40.9]} 26. Rg3 {[%clk 0:00:41]}
26... Nf6 {[%clk 0:01:39.9]} 27. Qe5 {[%clk 0:00:28.8]} 27... Kh7 {[%clk
0:01:39.7]} 28. Kb1 {[%clk 0:00:15.4]} 28... Rb5 {[%clk 0:01:37]} 29. Qd6 {[%clk
0:00:12.9]} 29... Qc8 {[%clk 0:01:24.2]} 30. Qf4 {[%clk 0:00:10.4]} 30... Nxh5
{[%clk 0:01:20.8]} 31. Qe4+ {[%clk 0:00:05.4]} 31... f5 {[%clk 0:01:20.3]} 32.
Qf3 {[%clk 0:00:05.5]} 32... Nxg3 {[%clk 0:01:20.4]} 33. Nd6 {[%clk 0:00:05.8]}
33... Qb8 {[%clk 0:01:10.8]} 34. Nxb5 {[%clk 0:00:05.8]} 34... Qxb5 {[%clk
0:00:40.9]} 35. Qxg3 {[%clk 0:00:06.1]} 35... Re8 {[%clk 0:00:41.2]} 36. Qe3
{[%clk 0:00:04.8]} 36... Rd8 {[%clk 0:00:41]} 37. Rd2 {[%clk 0:00:02.8]} 37...
Qd5 {[%clk 0:00:39.6]} 0-1

[Event "*** SCC Grand Prix: Titled Tuesday Blitz"]
[Site "Chess.com"]
[Date "2020.06.02"]
[Round "2"]
[White "verdest"]
[Black "Konavets"]
[Result "0-1"]
[WhiteElo "2581"]
[BlackElo "2972"]
[TimeControl "180+1"]
[EndTime "10:17:35 PDT"]
[Termination "Konavets won by resignation"]

1. d4 {[%clk 0:03:00.9]} 1... Nf6 {[%clk 0:02:59.7]} 2. c4 {[%clk 0:03:01]} 2...
e6 {[%clk 0:03:00.6]} 3. Nf3 {[%clk 0:03:00.3]} 3... b6 {[%clk 0:02:59.4]} 4. g3
{[%clk 0:02:59.9]} 4... Ba6 {[%clk 0:02:51.6]} 5. b3 {[%clk 0:02:59.3]} 5... d5
{[%clk 0:02:48.6]} 6. Bg2 {[%clk 0:02:54.1]} 6... Bb4+ {[%clk 0:02:49.1]} 7. Bd2
{[%clk 0:02:51.8]} 7... Be7 {[%clk 0:02:50]} 8. cxd5 {[%clk 0:02:45.1]} 8...
exd5 {[%clk 0:02:49]} 9. O-O {[%clk 0:02:44.2]} 9... O-O {[%clk 0:02:49.2]} 10.
Nc3 {[%clk 0:02:43.9]} 10... c5 {[%clk 0:02:48.4]} 11. Bc1 {[%clk 0:02:40.4]}
11... Nc6 {[%clk 0:02:45.9]} 12. Bb2 {[%clk 0:02:38.5]} 12... Re8 {[%clk
0:02:45.6]} 13. Rc1 {[%clk 0:02:34.5]} 13... Rc8 {[%clk 0:02:45.3]} 14. Re1
{[%clk 0:02:34]} 14... Bf8 {[%clk 0:02:43.8]} 15. e3 {[%clk 0:02:33.3]} 15... h6
{[%clk 0:02:22.7]} 16. a3 {[%clk 0:02:20.5]} 16... Qd7 {[%clk 0:02:07.5]} 17.
dxc5 {[%clk 0:02:13]} 17... bxc5 {[%clk 0:02:04.9]} 18. Na4 {[%clk 0:02:12.2]}
18... Ne4 {[%clk 0:02:04.9]} 19. Nd2 {[%clk 0:02:12]} 19... Nxd2 {[%clk
0:01:59.5]} 20. Qxd2 {[%clk 0:02:11.3]} 20... Ne5 {[%clk 0:02:00.2]} 21. Bxe5
{[%clk 0:01:46.4]} 21... Rxe5 {[%clk 0:02:01.1]} 22. Red1 {[%clk 0:01:46.3]}
22... d4 {[%clk 0:01:29.4]} 23. exd4 {[%clk 0:01:36.4]} 23... Re2 {[%clk
0:01:29]} 24. Qf4 {[%clk 0:01:31.5]} 24... cxd4 {[%clk 0:01:28.8]} 25. Rxc8
{[%clk 0:01:22.3]} 25... Bxc8 {[%clk 0:01:28.2]} 26. Bf3 {[%clk 0:01:20.2]}
26... Re8 {[%clk 0:01:23.7]} 27. Nb2 {[%clk 0:00:45.6]} 27... Bxa3 {[%clk
0:01:19.5]} 28. Nc4 {[%clk 0:00:44.8]} 28... Bc5 {[%clk 0:01:18.5]} 29. Ne5
{[%clk 0:00:36.8]} 29... Qc7 {[%clk 0:01:09.5]} 30. Nd3 {[%clk 0:00:25.3]} 30...
Qxf4 {[%clk 0:01:09.6]} 31. Nxf4 {[%clk 0:00:23.1]} 31... Bf5 {[%clk 0:01:09.3]}
32. Rc1 {[%clk 0:00:20.4]} 32... Bb6 {[%clk 0:01:03.4]} 33. Nd5 {[%clk
0:00:19.3]} 33... d3 {[%clk 0:01:01.2]} 34. Nxb6 {[%clk 0:00:16.2]} 34... axb6
{[%clk 0:01:01.5]} 35. Rd1 {[%clk 0:00:16.7]} 35... Rc8 {[%clk 0:00:46.7]} 36.
Kg2 {[%clk 0:00:12.9]} 36... Rc3 {[%clk 0:00:45]} 37. b4 {[%clk 0:00:12.2]}
37... g5 {[%clk 0:00:44.4]} 38. b5 {[%clk 0:00:07.7]} 38... Be6 {[%clk
0:00:43.3]} 39. Be4 {[%clk 0:00:05.7]} 39... Bc4 {[%clk 0:00:43.3]} 40. Kf3
{[%clk 0:00:04.7]} 40... Bxb5 {[%clk 0:00:33.2]} 41. Ke3 {[%clk 0:00:04.6]}
41... Kg7 {[%clk 0:00:33.8]} 42. Kd4 {[%clk 0:00:03.3]} 42... Rc2 {[%clk
0:00:34.3]} 43. Bxd3 {[%clk 0:00:02.9]} 43... Bxd3 {[%clk 0:00:35.2]} 44. Rxd3
{[%clk 0:00:03]} 44... Rxf2 {[%clk 0:00:35.9]} 0-1

[Event "*** SCC Grand Prix: Titled Tuesday Blitz"]
[Site "Chess.com"]
[Date "2020.06.02"]
[Round "2"]
[White "JSMastropiero"]
[Black "fridaywins"]
[Result "1-0"]
[WhiteElo "2451"]
[BlackElo "2236"]
[TimeControl "180+1"]
[EndTime "10:17:35 PDT"]
[Termination "JSMastropiero won by resignation"]

1. d4 {[%clk 0:03:00.9]} 1... Nf6 {[%clk 0:02:56.9]} 2. c4 {[%clk 0:03:00.4]}
2... g6 {[%clk 0:02:57.8]} 3. Nc3 {[%clk 0:02:59.7]} 3... Bg7 {[%clk 0:02:58.7]}
4. e4 {[%clk 0:02:59]} 4... O-O {[%clk 0:02:59.6]} 5. f3 {[%clk 0:02:51.4]} 5...
d6 {[%clk 0:02:55.3]} 6. Nge2 {[%clk 0:02:50.6]} 6... Nfd7 {[%clk 0:02:53.3]} 7.
Be3 {[%clk 0:02:47.6]} 7... c5 {[%clk 0:02:53.3]} 8. Qd2 {[%clk 0:02:45.8]} 8...
Nc6 {[%clk 0:02:48.9]} 9. d5 {[%clk 0:02:43.2]} 9... Nce5 {[%clk 0:02:48.8]} 10.
Nc1 {[%clk 0:02:42.3]} 10... Nb6 {[%clk 0:02:36]} 11. b3 {[%clk 0:02:37.8]}
11... f5 {[%clk 0:02:33.9]} 12. exf5 {[%clk 0:02:23.4]} 12... Bxf5 {[%clk
0:02:32.6]} 13. Be2 {[%clk 0:02:13.4]} 13... a6 {[%clk 0:02:12.5]} 14. O-O
{[%clk 0:02:09.8]} 14... Nbd7 {[%clk 0:02:04.8]} 15. g4 {[%clk 0:02:05.7]} 15...
Bxg4 {[%clk 0:01:59.7]} 16. fxg4 {[%clk 0:02:04.3]} 16... Rxf1+ {[%clk
0:01:56.4]} 17. Kxf1 {[%clk 0:02:02.7]} 17... Qa5 {[%clk 0:01:57.1]} 18. Rb1
{[%clk 0:01:38]} 18... Rf8+ {[%clk 0:01:57.5]} 19. Kg2 {[%clk 0:01:36.3]} 19...
Nxc4 {[%clk 0:01:45]} 20. bxc4 {[%clk 0:01:29.2]} 20... Bxc3 {[%clk 0:01:44.3]}
21. Qc2 {[%clk 0:01:21.3]} 21... Bb4 {[%clk 0:01:17.2]} 22. Nd3 {[%clk
0:01:15.9]} 22... Ne5 {[%clk 0:01:01.2]} 23. Nxe5 {[%clk 0:01:13.4]} 23... dxe5
{[%clk 0:01:01.2]} 24. Rf1 {[%clk 0:01:10.3]} 24... Rxf1 {[%clk 0:00:55.7]} 25.
Bxf1 {[%clk 0:01:09.7]} 25... Bc3 {[%clk 0:00:52.1]} 26. Bd3 {[%clk 0:01:01.3]}
26... Bd4 {[%clk 0:00:45.2]} 27. Bh6 {[%clk 0:00:55.4]} 27... Qb6 {[%clk
0:00:41.8]} 28. Qb3 {[%clk 0:00:50.2]} 28... Qf6 {[%clk 0:00:35.5]} 29. Qc2
{[%clk 0:00:39]} 29... Qh4 {[%clk 0:00:34.8]} 30. Qe2 {[%clk 0:00:15.9]} 30...
Qxh6 {[%clk 0:00:33.8]} 31. d6 {[%clk 0:00:14.7]} 31... e6 {[%clk 0:00:23.7]}
32. d7 {[%clk 0:00:12.8]} 32... Qf8 {[%clk 0:00:23.4]} 33. Qf3 {[%clk
0:00:12.3]} 33... Qd6 {[%clk 0:00:20.5]} 34. Qxb7 {[%clk 0:00:11.7]} 34... e4
{[%clk 0:00:20.1]} 35. Qc8+ {[%clk 0:00:11.8]} 35... Kg7 {[%clk 0:00:16.7]} 36.
d8=Q {[%clk 0:00:12.3]} 1-0